fUSD/lending_fUSD_20260614
["ID","MTS","AMOUNT","RATE_DAILY","PERIOD"]
[425027798,1781436673000,-1881.99,0.00028767,8]
[425027797,1781436673000,-592.79,0.00028767,8]
[425027796,1781436673000,-502.16,0.00028767,8]
[425027799,1781436673000,-500.0,0.00028767,8]
[425027801,1781436673000,-500.0,0.00028767,8]
[425027804,1781436673000,-645.33,0.00028767,8]
[425027803,1781436673000,-500.0,0.00028767,8]
[425027807,1781436673000,-500.0,0.00028767,8]
[425027825,1781436673000,-566.63,0.00028767,8]
[425027794,1781436673000,-816.74,0.00028767,8]
[425027827,1781436673000,-500.0,0.00028767,8]
[425027851,1781436673000,-1295.99,0.00028767,8]
[425027850,1781436673000,-500.0,0.00028767,8]
[425027852,1781436673000,-824.89,0.00028767,8]
[425027865,1781436673000,-663.4,0.00028767,8]
[425027853,1781436673000,-851.46,0.00028767,8]
[425027855,1781436673000,-500.0,0.00028767,8]
[425027856,1781436673000,-2302.95,0.00028767,8]
[425027854,1781436673000,-500.0,0.00028767,8]
[425027857,1781436673000,-500.0,0.00028767,8]
[425027859,1781436673000,-1526.17,0.00028767,8]
[425027858,1781436673000,-5454.3,0.00028767,8]
[425027860,1781436673000,-500.0,0.00028767,8]
[425027862,1781436673000,-867.36,0.00028767,8]
[425027863,1781436673000,-1236.56,0.00028767,8]
[425027861,1781436673000,-648.05,0.00028767,8]
[425027866,1781436673000,-500.0,0.00028767,8]
[425027826,1781436673000,-1023.92,0.00028767,8]
[425027848,1781436673000,-697.1,0.00028767,8]
[425027849,1781436673000,-768.14,0.00028767,8]
[425027864,1781436673000,-500.0,0.00028767,8]
[425027843,1781436673000,-500.0,0.00028767,8]
[425027845,1781436673000,-869.29,0.00028767,8]
[425027829,1781436673000,-500.0,0.00028767,8]
[425027832,1781436673000,-537.38581918,0.00028767,8]
[425027831,1781436673000,-724.35,0.00028767,8]
[425027828,1781436673000,-1188.61,0.00028767,8]
[425027834,1781436673000,-1423.51,0.00028767,8]
[425027833,1781436673000,-568.13,0.00028767,8]
[425027840,1781436673000,-500.0,0.00028767,8]
[425027837,1781436673000,-500.0,0.00028767,8]
[425027830,1781436673000,-500.0,0.00028767,8]
[425027838,1781436673000,-500.0,0.00028767,8]
[425027836,1781436673000,-500.0,0.00028767,8]
[425027835,1781436673000,-528.07,0.00028767,8]
[425027839,1781436673000,-1591.01,0.00028767,8]
[425027844,1781436673000,-500.0,0.00028767,8]
[425027847,1781436673000,-500.0,0.00028767,8]
[425027846,1781436673000,-504.92,0.00028767,8]
[425027841,1781436673000,-541.64,0.00028767,8]
[425027842,1781436673000,-1304.3,0.00028767,8]
[425027884,1781436674000,-500.0,0.00028767,8]
[425027886,1781436674000,-1662.26,0.00028767,8]
[425027885,1781436674000,-500.0,0.00028767,8]
[425027887,1781436674000,-500.0,0.00028767,8]
[425027891,1781436674000,-500.0,0.00028767,8]
[425027890,1781436674000,-1387.47,0.00028767,8]
[425027889,1781436674000,-500.0,0.00028767,8]
[425027895,1781436674000,-6854.6,0.00028767,8]
[425027894,1781436674000,-2657.03,0.00028767,8]
[425027896,1781436674000,-500.0,0.00028767,8]
[425027899,1781436674000,-500.0,0.00028767,8]
[425027898,1781436674000,-882.04,0.00028767,8]
[425027893,1781436674000,-500.0,0.00028767,8]
[425027900,1781436674000,-500.0,0.00028767,8]
[425027892,1781436674000,-9318.37,0.00028767,8]
[425027883,1781436674000,-500.0,0.00028767,8]
[425027873,1781436674000,-500.0,0.00028767,8]
[425027882,1781436674000,-1599.02,0.00028767,8]
[425027897,1781436674000,-500.0,0.00028767,8]
[425027867,1781436674000,-500.0,0.00028767,8]
[425027868,1781436674000,-500.0,0.00028767,8]
[425027871,1781436674000,-2205.29,0.00028767,8]
[425027870,1781436674000,-500.0,0.00028767,8]
[425027872,1781436674000,-660.0,0.00028767,8]
[425027881,1781436674000,-1902.0,0.00028767,8]
[425027869,1781436674000,-2119.65,0.00028767,8]
[425027874,1781436674000,-500.0,0.00028767,8]
[425027879,1781436674000,-500.0,0.00028767,8]
[425027877,1781436674000,-500.0,0.00028767,8]
[425027876,1781436674000,-500.0,0.00028767,8]
[425027878,1781436674000,-1736.16,0.00028767,8]
[425027880,1781436674000,-845.76,0.00028767,8]
[425027875,1781436674000,-1631.77,0.00028767,8]
[425027901,1781436674000,-626.27,0.00028767,8]
[425027888,1781436674000,-500.0,0.00028767,8]
[425027902,1781436674000,-620.22,0.00028767,8]
[425027924,1781436674000,-537.91326371,0.00028767,8]
[425027919,1781436674000,-566.83,0.00028767,8]
[425027923,1781436674000,-500.0,0.00028767,8]
[425027925,1781436674000,-2165.46,0.00028767,8]
[425027927,1781436674000,-787.41,0.00028767,8]
[425027929,1781436674000,-556.33,0.00028767,8]
[425027936,1781436674000,-500.0,0.00028767,8]
[425027931,1781436674000,-643.87,0.00028767,8]
[425027935,1781436674000,-500.0,0.00028767,8]
[425027930,1781436674000,-1561.3,0.00028767,8]
[425027932,1781436674000,-1371.78,0.00028767,8]
[425027926,1781436674000,-500.0,0.00028767,8]
[425027933,1781436674000,-509.58,0.00028767,8]
[425027934,1781436674000,-1973.29,0.00028767,8]
[425027903,1781436674000,-633.46,0.00028767,8]
[425027918,1781436674000,-1058.56,0.00028767,8]
[425027921,1781436674000,-252.23646118,0.00028767,8]
[425027928,1781436674000,-500.0,0.00028767,8]
[425027922,1781436674000,-1131.84,0.00028767,8]
[425027920,1781436674000,-500.0,0.00028767,8]
[425027906,1781436674000,-500.0,0.00028767,8]
[425027907,1781436674000,-500.0,0.00028767,8]
[425027904,1781436674000,-509.28,0.00028767,8]
[425027913,1781436674000,-524.11,0.00028767,8]
[425027905,1781436674000,-1056.98,0.00028767,8]
[425027909,1781436674000,-500.0,0.00028767,8]
[425027908,1781436674000,-609.08147038,0.00028767,8]
[425027911,1781436674000,-1091.01,0.00028767,8]
[425027910,1781436674000,-500.0,0.00028767,8]
[425027914,1781436674000,-500.0,0.00028767,8]
[425027915,1781436674000,-1201.05,0.00028767,8]
[425027917,1781436674000,-595.66,0.00028767,8]
[425027912,1781436674000,-500.0,0.00028767,8]
[425027916,1781436674000,-811.39,0.00028767,8]
[425027965,1781436675000,-500.0,0.00028767,8]
[425027973,1781436675000,-500.0,0.00028767,8]
[425027975,1781436675000,-500.0,0.00028767,8]
[425027976,1781436675000,-578.37,0.00028767,8]
[425027977,1781436675000,-1139.19,0.00028767,8]
[425027966,1781436675000,-1133.72,0.00028767,8]
[425027970,1781436675000,-569.8439428,0.00028767,8]
[425027968,1781436675000,-648.1,0.00028767,8]
[425027967,1781436675000,-674.46,0.00028767,8]
[425027969,1781436675000,-850.13,0.00028767,8]
[425027972,1781436675000,-500.0,0.00028767,8]
[425027980,1781436675000,-516.79,0.00028767,8]
[425027994,1781436675000,-500.0,0.00028767,8]
[425027981,1781436675000,-299.86102273,0.00028767,8]
[425027979,1781436675000,-8085.8,0.00028767,8]
[425027982,1781436675000,-500.0,0.00028767,8]
[425027974,1781436675000,-774.42,0.00028767,8]
[425027984,1781436675000,-1467.58,0.00028767,8]
[425027983,1781436675000,-500.0,0.00028767,8]
[425027992,1781436675000,-575.72,0.00028767,8]
[425027988,1781436675000,-1815.68,0.00028767,8]
[425027985,1781436675000,-4916.71,0.00028767,8]
[425027986,1781436675000,-500.0,0.00028767,8]
[425027962,1781436675000,-500.0,0.00028767,8]
[425027987,1781436675000,-500.0,0.00028767,8]
[425027978,1781436675000,-1061.75,0.00028767,8]
[425027964,1781436675000,-500.0,0.00028767,8]
[425027945,1781436675000,-592.15,0.00028767,8]
[425027960,1781436675000,-500.0,0.00028767,8]
[425027989,1781436675000,-929.75,0.00028767,8]
[425027938,1781436675000,-500.0,0.00028767,8]
[425027937,1781436675000,-500.0,0.00028767,8]
[425027939,1781436675000,-992.53,0.00028767,8]
[425027941,1781436675000,-500.0,0.00028767,8]
[425027940,1781436675000,-500.0,0.00028767,8]
[425027944,1781436675000,-2799.41,0.00028767,8]
[425027946,1781436675000,-655.79,0.00028767,8]
[425027943,1781436675000,-1287.79,0.00028767,8]
[425027947,1781436675000,-815.14,0.00028767,8]
[425027942,1781436675000,-3257.38,0.00028767,8]
[425027948,1781436675000,-1754.68,0.00028767,8]
[425027950,1781436675000,-1116.71,0.00028767,8]
[425027954,1781436675000,-824.3,0.00028767,8]
[425027951,1781436675000,-544.77,0.00028767,8]
[425027957,1781436675000,-500.0,0.00028767,8]
[425027958,1781436675000,-518.86,0.00028767,8]
[425027955,1781436675000,-500.0,0.00028767,8]
[425027953,1781436675000,-569.25,0.00028767,8]
[425027949,1781436675000,-1310.78,0.00028767,8]
[425027959,1781436675000,-621.52,0.00028767,8]
[425027952,1781436675000,-500.0,0.00028767,8]
[425027956,1781436675000,-527.3,0.00028767,8]
[425027961,1781436675000,-730.77,0.00028767,8]
[425027971,1781436675000,-1004.12,0.00028767,8]
[425027963,1781436675000,-924.83,0.00028767,8]
[425027991,1781436675000,-500.0,0.00028767,8]
[425028020,1781436675000,-2256.66,0.00028767,8]
[425027993,1781436675000,-500.0,0.00028767,8]
[425028025,1781436675000,-2921.71,0.00028767,8]
[425028026,1781436675000,-622.72,0.00028767,8]
[425028029,1781436675000,-500.0,0.00028767,8]
[425028027,1781436675000,-500.0,0.00028767,8]
[425028019,1781436675000,-500.0,0.00028767,8]
[425028030,1781436675000,-500.0,0.00028767,8]
[425028040,1781436675000,-892.62,0.00028767,8]
[425028031,1781436675000,-1839.7,0.00028767,8]
[425028032,1781436675000,-500.0,0.00028767,8]
[425028033,1781436675000,-500.0,0.00028767,8]
[425028034,1781436675000,-500.0,0.00028767,8]
[425028036,1781436675000,-500.0,0.00028767,8]
[425028028,1781436675000,-569.42894929,0.00028767,8]
[425028037,1781436675000,-612.48,0.00028767,8]
[425028038,1781436675000,-1091.59,0.00028767,8]
[425028045,1781436675000,-1797.01,0.00028767,8]
[425028041,1781436675000,-1722.32,0.00028767,8]
[425028047,1781436675000,-1317.99,0.00028767,8]
[425028044,1781436675000,-631.02,0.00028767,8]
[425028050,1781436675000,-868.68,0.00028767,8]
[425028046,1781436675000,-2696.04,0.00028767,8]
[425028042,1781436675000,-3355.96,0.00028767,8]
[425028043,1781436675000,-2155.6,0.00028767,8]
[425028048,1781436675000,-884.1,0.00028767,8]
[425028049,1781436675000,-4777.45,0.00028767,8]
[425027990,1781436675000,-500.0,0.00028767,8]
[425028039,1781436675000,-500.0,0.00028767,8]
[425028021,1781436675000,-4552.31,0.00028767,8]
[425028035,1781436675000,-19214.29,0.00028767,8]
[425028022,1781436675000,-1758.65,0.00028767,8]
[425028024,1781436675000,-740.84,0.00028767,8]
[425027997,1781436675000,-7344.99,0.00028767,8]
[425027999,1781436675000,-500.0,0.00028767,8]
[425027998,1781436675000,-504.09,0.00028767,8]
[425027996,1781436675000,-1241.94,0.00028767,8]
[425028005,1781436675000,-500.0,0.00028767,8]
[425028000,1781436675000,-571.46,0.00028767,8]
[425028001,1781436675000,-984.25,0.00028767,8]
[425028002,1781436675000,-500.0,0.00028767,8]
[425028004,1781436675000,-2160.35,0.00028767,8]
[425028003,1781436675000,-500.0,0.00028767,8]
[425028016,1781436675000,-500.0,0.00028767,8]
[425028007,1781436675000,-500.0,0.00028767,8]
[425027995,1781436675000,-872.27,0.00028767,8]
[425028006,1781436675000,-1003.72,0.00028767,8]
[425028017,1781436675000,-2554.65,0.00028767,8]
[425028018,1781436675000,-2098.88,0.00028767,8]
[425028014,1781436675000,-1503.8,0.00028767,8]
[425028011,1781436675000,-612.61,0.00028767,8]
[425028013,1781436675000,-2614.38,0.00028767,8]
[425028023,1781436675000,-500.0,0.00028767,8]
[425028015,1781436675000,-528.83,0.00028767,8]
[425028010,1781436675000,-500.0,0.00028767,8]
[425028008,1781436675000,-500.0,0.00028767,8]
[425028009,1781436675000,-2361.19,0.00028767,8]
[425028012,1781436675000,-2257.06,0.00028767,8]
[425028089,1781436676000,-500.0,0.00028767,8]
[425028090,1781436676000,-500.0,0.00028767,8]
[425028099,1781436676000,-500.0,0.00028767,8]
[425028082,1781436676000,-1029.1,0.00028767,8]
[425028094,1781436676000,-853.29,0.00028767,8]
[425028078,1781436676000,-1416.97,0.00028767,8]
[425028086,1781436676000,-667.3,0.00028767,8]
[425028084,1781436676000,-500.0,0.00028767,8]
[425028079,1781436676000,-500.0,0.00028767,8]
[425028092,1781436676000,-883.05,0.00028767,8]
[425028083,1781436676000,-866.43,0.00028767,8]
[425028088,1781436676000,-500.0,0.00028767,8]
[425028093,1781436676000,-500.0,0.00028767,8]
[425028101,1781436676000,-673.61,0.00028767,8]
[425028095,1781436676000,-796.66,0.00028767,8]
[425028097,1781436676000,-1905.43,0.00028767,8]
[425028096,1781436676000,-503.6997139,0.00028767,8]
[425028098,1781436676000,-500.0,0.00028767,8]
[425028100,1781436676000,-880.56,0.00028767,8]
[425028103,1781436676000,-494.27362756,0.00028767,8]
[425028102,1781436676000,-500.0,0.00028767,2]
[425028104,1781436676000,-1663.65,0.00028767,8]
[425028107,1781436676000,-500.0,0.00028767,8]
[425028108,1781436676000,-500.0,0.00028767,8]
[425028109,1781436676000,-1070.85,0.00028767,8]
[425028085,1781436676000,-2462.41,0.00028767,8]
[425028091,1781436676000,-1138.72,0.00028767,8]
[425028081,1781436676000,-500.0,0.00028767,8]
[425028051,1781436676000,-500.0,0.00028767,8]
[425028076,1781436676000,-500.0,0.00028767,8]
[425028106,1781436676000,-500.0,0.00028767,8]
[425028052,1781436676000,-1508.58,0.00028767,8]
[425028054,1781436676000,-960.98,0.00028767,8]
[425028053,1781436676000,-500.0,0.00028767,8]
[425028055,1781436676000,-500.0,0.00028767,8]
[425028056,1781436676000,-500.0,0.00028767,8]
[425028057,1781436676000,-3565.89,0.00028767,8]
[425028058,1781436676000,-500.0,0.00028767,8]
[425028059,1781436676000,-500.0,0.00028767,8]
[425028060,1781436676000,-1077.21,0.00028767,8]
[425028063,1781436676000,-1022.94,0.00028767,8]
[425028061,1781436676000,-691.55,0.00028767,8]
[425028080,1781436676000,-907.8,0.00028767,8]
[425028062,1781436676000,-500.0,0.00028767,8]
[425028066,1781436676000,-425.8560516,0.00028767,8]
[425028075,1781436676000,-500.0,0.00028767,8]
[425028070,1781436676000,-1089.95,0.00028767,8]
[425028069,1781436676000,-500.0,0.00028767,8]
[425028065,1781436676000,-500.0,0.00028767,8]
[425028067,1781436676000,-565.76,0.00028767,8]
[425028068,1781436676000,-500.0,0.00028767,8]
[425028071,1781436676000,-500.0,0.00028767,8]
[425028074,1781436676000,-703.26,0.00028767,8]
[425028073,1781436676000,-500.0,0.00028767,8]
[425028077,1781436676000,-500.0,0.00028767,8]
[425028087,1781436676000,-4683.5,0.00028767,8]
[425028064,1781436676000,-892.97,0.00028767,8]
[425028105,1781436676000,-560.93,0.00028767,8]
[425028072,1781436676000,-500.0,0.00028767,8]
[425028121,1781436676000,-690.07,0.00028767,8]
[425028142,1781436676000,-2542.25,0.00028767,8]
[425028141,1781436676000,-1161.38,0.00028767,8]
[425028138,1781436676000,-500.0,0.00028767,8]
[425028144,1781436676000,-594.72028876,0.00028767,8]
[425028158,1781436676000,-500.0,0.00028767,8]
[425028157,1781436676000,-500.0,0.00028767,8]
[425028159,1781436676000,-695.51,0.00028767,8]
[425028147,1781436676000,-1866.12,0.00028767,8]
[425028150,1781436676000,-500.0,0.00028767,8]
[425028166,1781436676000,-500.0,0.00028767,8]
[425028155,1781436676000,-500.0,0.00028767,8]
[425028148,1781436676000,-770.01,0.00028767,8]
[425028143,1781436676000,-500.0,0.00028767,8]
[425028153,1781436676000,-1071.25,0.00028767,8]
[425028149,1781436676000,-719.38,0.00028767,8]
[425028156,1781436676000,-1076.43,0.00028767,8]
[425028152,1781436676000,-500.0,0.00028767,8]
[425028161,1781436676000,-500.0,0.00028767,8]
[425028163,1781436676000,-574.62,0.00028767,8]
[425028164,1781436676000,-712.69,0.00028767,8]
[425028160,1781436676000,-992.72,0.00028767,8]
[425028162,1781436676000,-502.17,0.00028767,8]
[425028168,1781436676000,-541.36,0.00028767,8]
[425028165,1781436676000,-1643.27,0.00028767,8]
[425028167,1781436676000,-706.89,0.00028767,8]
[425028111,1781436676000,-500.0,0.00028767,8]
[425028154,1781436676000,-1163.17,0.00028767,8]
[425028140,1781436676000,-3187.96,0.00028767,8]
[425028151,1781436676000,-500.0,0.00028767,8]
[425028137,1781436676000,-500.0,0.00028767,8]
[425028134,1781436676000,-1434.49,0.00028767,8]
[425028112,1781436676000,-1339.46,0.00028767,8]
[425028110,1781436676000,-500.0,0.00028767,2]
[425028113,1781436676000,-1287.86,0.00028767,8]
[425028116,1781436676000,-500.0,0.00028767,8]
[425028119,1781436676000,-572.46,0.00028767,8]
[425028117,1781436676000,-315.76338408,0.00028767,8]
[425028115,1781436676000,-500.0,0.00028767,8]
[425028114,1781436676000,-2172.3,0.00028767,8]
[425028118,1781436676000,-1152.52,0.00028767,8]
[425028120,1781436676000,-637.78,0.00028767,8]
[425028123,1781436676000,-4620.02,0.00028767,8]
[425028128,1781436676000,-1818.3,0.00028767,2]
[425028131,1781436676000,-500.0,0.00028767,8]
[425028122,1781436676000,-638.97,0.00028767,8]
[425028145,1781436676000,-1881.88,0.00028767,8]
[425028129,1781436676000,-1978.69,0.00028767,8]
[425028125,1781436676000,-500.0,0.00028767,8]
[425028130,1781436676000,-500.0,0.00028767,8]
[425028126,1781436676000,-500.0,0.00028767,8]
[425028132,1781436676000,-500.0,0.00028767,8]
[425028127,1781436676000,-500.0,0.00028767,8]
[425028133,1781436676000,-500.0,0.00028767,8]
[425028135,1781436676000,-500.0,0.00028767,8]
[425028124,1781436676000,-1028.97,0.00028767,8]
[425028146,1781436676000,-511.17,0.00028767,8]
[425028136,1781436676000,-500.0,0.00028767,8]
[425028139,1781436676000,-1003.32,0.00028767,8]
[425028205,1781436677000,-2011.8,0.00028767,8]
[425028206,1781436677000,-500.13,0.00028767,8]
[425028201,1781436677000,-2075.95,0.00028767,8]
[425028221,1781436677000,-520.98792006,0.00028767,8]
[425028210,1781436677000,-500.0,0.00028767,8]
[425028207,1781436677000,-500.0,0.00028767,8]
[425028208,1781436677000,-500.0,0.00028767,8]
[425028203,1781436677000,-954.15,0.00028767,8]
[425028198,1781436677000,-1338.92,0.00028767,8]
[425028202,1781436677000,-500.0,0.00028767,8]
[425028200,1781436677000,-500.0,0.00028767,8]
[425028213,1781436677000,-500.0,0.00028767,8]
[425028204,1781436677000,-500.0,0.00028767,8]
[425028220,1781436677000,-4250.44,0.00028767,8]
[425028214,1781436677000,-500.0,0.00028767,8]
[425028212,1781436677000,-579.41039262,0.00028767,8]
[425028209,1781436677000,-500.0,0.00028767,8]
[425028216,1781436677000,-1220.53,0.00028767,8]
[425028215,1781436677000,-2098.27,0.00028767,8]
[425028219,1781436677000,-1020.63,0.00028767,8]
[425028217,1781436677000,-687.87,0.00028767,8]
[425028218,1781436677000,-5753.69,0.00028767,8]
[425028223,1781436677000,-500.0,0.00028767,8]
[425028222,1781436677000,-757.3,0.00028767,8]
[425028225,1781436677000,-500.0,0.00028767,8]
[425028231,1781436677000,-500.0,0.00028767,8]
[425028227,1781436677000,-500.0,0.00028767,8]
[425028211,1781436677000,-500.0,0.00028767,8]
[425028199,1781436677000,-15553.71,0.00028767,8]
[425028172,1781436677000,-854.75,0.00028767,8]
[425028194,1781436677000,-500.0,0.00028767,8]
[425028224,1781436677000,-1412.97,0.00028767,8]
[425028171,1781436677000,-595.59,0.00028767,8]
[425028169,1781436677000,-500.2,0.00028767,8]
[425028170,1781436677000,-3097.47,0.00028767,8]
[425028173,1781436677000,-877.33,0.00028767,8]
[425028176,1781436677000,-2027.83,0.00028767,8]
[425028175,1781436677000,-500.0,0.00028767,8]
[425028174,1781436677000,-1553.49,0.00028767,8]
[425028181,1781436677000,-1045.55,0.00028767,8]
[425028177,1781436677000,-500.0,0.00028767,8]
[425028183,1781436677000,-500.0,0.00028767,8]
[425028178,1781436677000,-500.0,0.00028767,8]
[425028182,1781436677000,-743.15,0.00028767,8]
[425028184,1781436677000,-500.0,0.00028767,8]
[425028180,1781436677000,-1310.37,0.00028767,8]
[425028179,1781436677000,-695.05,0.00028767,8]
[425028186,1781436677000,-500.0,0.00028767,8]
[425028196,1781436677000,-5405.22,0.00028767,8]
[425028185,1781436677000,-500.0,0.00028767,8]
[425028187,1781436677000,-585.03,0.00028767,8]
[425028189,1781436677000,-1209.78,0.00028767,8]
[425028192,1781436677000,-500.0,0.00028767,8]
[425028193,1781436677000,-2093.51,0.00028767,8]
[425028190,1781436677000,-500.0,0.00028767,8]
[425028188,1781436677000,-1250.29,0.00028767,8]
[425028191,1781436677000,-500.0,0.00028767,8]
[425028195,1781436677000,-2496.95,0.00028767,8]
[425028197,1781436677000,-500.0,0.00028767,8]
[425028226,1781436677000,-1973.87,0.00028767,8]
[425028258,1781436677000,-350.59102155,0.00028767,8]
[425028233,1781436677000,-2149.5,0.00028767,8]
[425028263,1781436677000,-1270.21,0.00028767,8]
[425028264,1781436677000,-2375.22,0.00028767,8]
[425028262,1781436677000,-500.0,0.00028767,8]
[425028267,1781436677000,-775.96,0.00028767,8]
[425028232,1781436677000,-1150.74,0.00028767,8]
[425028266,1781436677000,-809.36,0.00028767,8]
[425028265,1781436677000,-500.0,0.00028767,8]
[425028270,1781436677000,-500.0,0.00028767,8]
[425028272,1781436677000,-3220.54,0.00028767,8]
[425028273,1781436677000,-500.0,0.00028767,8]
[425028274,1781436677000,-1007.92,0.00028767,8]
[425028275,1781436677000,-500.0,0.00028767,8]
[425028276,1781436677000,-500.0,0.00028767,8]
[425028268,1781436677000,-500.0,0.00028767,8]
[425028278,1781436677000,-500.0,0.00028767,8]
[425028277,1781436677000,-1615.64,0.00028767,8]
[425028281,1781436677000,-500.0,0.00028767,8]
[425028279,1781436677000,-1354.7,0.00028767,8]
[425028282,1781436677000,-544.28,0.00028767,8]
[425028280,1781436677000,-1295.96,0.00028767,8]
[425028284,1781436677000,-1442.04,0.00028767,8]
[425028285,1781436677000,-1242.61,0.00028767,8]
[425028287,1781436677000,-648.84,0.00028767,8]
[425028288,1781436677000,-501.45,0.00028767,8]
[425028283,1781436677000,-500.0,0.00028767,8]
[425028286,1781436677000,-604.1,0.00028767,8]
[425028290,1781436677000,-963.02,0.00028767,8]
[425028289,1781436677000,-500.0,0.00028767,8]
[425028271,1781436677000,-500.0,0.00028767,8]
[425028259,1781436677000,-883.55,0.00028767,8]
[425028269,1781436677000,-2352.69,0.00028767,8]
[425028260,1781436677000,-955.0,0.00028767,8]
[425028228,1781436677000,-973.6,0.00028767,8]
[425028230,1781436677000,-587.18069614,0.00028767,8]
[425028229,1781436677000,-500.0,0.00028767,8]
[425028234,1781436677000,-1525.12,0.00028767,8]
[425028236,1781436677000,-926.31,0.00028767,8]
[425028235,1781436677000,-2801.1,0.00028767,8]
[425028246,1781436677000,-702.57,0.00028767,8]
[425028261,1781436677000,-510.37,0.00028767,8]
[425028241,1781436677000,-2519.65,0.00028767,8]
[425028238,1781436677000,-1568.61,0.00028767,8]
[425028239,1781436677000,-1131.02,0.00028767,8]
[425028242,1781436677000,-4432.91,0.00028767,8]
[425028243,1781436677000,-781.1,0.00028767,8]
[425028245,1781436677000,-500.0,0.00028767,8]
[425028237,1781436677000,-561.28,0.00028767,8]
[425028240,1781436677000,-500.0,0.00028767,8]
[425028256,1781436677000,-889.97,0.00028767,8]
[425028244,1781436677000,-500.0,0.00028767,8]
[425028257,1781436677000,-547.62,0.00028767,8]
[425028255,1781436677000,-3102.37,0.00028767,8]
[425028252,1781436677000,-500.0,0.00028767,8]
[425028254,1781436677000,-500.0,0.00028767,8]
[425028248,1781436677000,-558.23,0.00028767,8]
[425028250,1781436677000,-837.03,0.00028767,8]
[425028249,1781436677000,-1615.08,0.00028767,8]
[425028247,1781436677000,-541.05,0.00028767,8]
[425028251,1781436677000,-1477.01,0.00028767,8]
[425028253,1781436677000,-608.87,0.00028767,8]
[425028302,1781436678000,-8632.18,0.00028767,8]
[425028306,1781436678000,-970.25,0.00028767,8]
[425028299,1781436678000,-500.0,0.00028767,8]
[425028297,1781436678000,-745.59,0.00028767,8]
[425028295,1781436678000,-500.0,0.00028767,8]
[425028296,1781436678000,-1755.46,0.00028767,8]
[425028292,1781436678000,-500.0,0.00028767,8]
[425028300,1781436678000,-500.0,0.00028767,8]
[425028303,1781436678000,-500.0,0.00028767,8]
[425028291,1781436678000,-1192.0,0.00028767,8]
[425028293,1781436678000,-589.39,0.00028767,8]
[425028294,1781436678000,-1653.09,0.00028767,8]
[425028304,1781436678000,-500.0,0.00028767,8]
[425028301,1781436678000,-1960.39,0.00028767,8]
[425028305,1781436678000,-500.0,0.00028767,8]
[425028319,1781436678000,-500.0,0.00028767,8]
[425028308,1781436678000,-2347.19,0.00028767,8]
[425028298,1781436678000,-1848.1,0.00028767,8]
[425028330,1781436678000,-500.0,0.00028767,8]
[425028322,1781436678000,-500.0,0.00028767,8]
[425028315,1781436678000,-642.76,0.00028767,8]
[425028317,1781436678000,-548.55,0.00028767,8]
[425028316,1781436678000,-500.0,0.00028767,8]
[425028313,1781436678000,-1963.38,0.00028767,8]
[425028325,1781436678000,-2040.85,0.00028767,8]